bitfinex/quotes_ETHUSD_20240828
["timestamp","ask_amount","ask_price","bid_price","bid_amount"]
[1724831789491,13.64970664,2443.9,2443.8,0.0358959]
[1724831789677,15.11671302,2443.9,2443.8,0.0358959]
[1724831789881,13.74246638,2443.9,2443.8,0.0358959]
[1724831790288,17.83428638,2443.9,2443.8,0.0358959]
[1724831790696,13.74246638,2443.9,2443.8,0.0358959]
[1724831790893,4.0915,2444.1,2443.8,0.0358959]
[1724831791073,4.09169,2444.0,2443.8,0.0358959]
[1724831791277,9.65064638,2443.9,2443.8,0.0358959]
[1724831791478,13.74246638,2443.9,2443.8,0.0358959]
[1724831791678,23.25926638,2443.9,2443.8,0.0358959]
[1724831793562,17.70044,2443.9,2443.8,0.0358959]
[1724831793899,23.25926638,2443.9,2443.8,0.0358959]
[1724831794103,28.38376622,2443.9,2443.8,0.0358959]
[1724831794479,24.29194622,2443.9,2443.8,0.0358959]
[1724831794691,4.09182,2443.9,2443.8,0.0358959]
[1724831795367,23.60206638,2443.9,2443.8,0.0358959]
[1724831796071,27.69388638,2443.9,2443.8,0.0358959]
[1724831796663,4.0912,2444.3,2443.8,0.0358959]
[1724831796664,4.0916,2444.1,2443.8,0.0358959]
[1724831796869,8.18364,2443.9,2443.8,0.0358959]
[1724831798006,4.09182,2443.9,2443.8,0.0358959]
[1724831798307,17.33934,2443.9,2443.8,0.0358959]
[1724831798798,17.28934,2443.9,2443.8,0.0358959]
[1724831799134,4.04182,2443.9,2443.8,0.0358959]
[1724831799711,8.13364,2443.9,2443.8,0.0358959]
[1724831799917,9.91204164,2443.9,2443.8,0.0358959]
[1724831800208,5.55882638,2444.0,2443.8,0.0358959]
[1724831800209,13.74239638,2444.0,2443.8,0.0358959]
[1724831800932,8.18364,2443.9,2443.8,0.0358959]
[1724831801322,4.09182,2443.9,2443.8,0.0358959]
[1724831801625,8.18364,2443.9,2443.8,0.0358959]
[1724831801849,9.55788664,2443.9,2443.8,0.0358959]
[1724831802196,22.92090664,2443.9,2443.8,0.0358959]
[1724831802413,18.82908664,2443.9,2443.8,0.0358959]
[1724831803398,22.92090664,2443.9,2443.8,0.0358959]
[1724831805925,27.01272664,2443.9,2443.8,0.0358959]
[1724831806118,18.82908664,2443.9,2443.8,0.0358959]
[1724831806321,22.92090664,2443.9,2443.8,0.0358959]
[1724831806518,22.92090664,2443.9,2443.8,0.0866937]
[1724831807448,27.01272664,2443.9,2443.8,0.0866937]
[1724831807737,30.01272664,2443.9,2443.8,3.7e-06]
[1724831808116,25.92090664,2443.9,2443.8,3.7e-06]
[1724831808933,18.82908664,2443.9,2443.8,3.7e-06]
[1724831809336,8.18364,2443.9,2443.8,3.7e-06]
[1724831813215,4.09182,2443.9,2443.8,3.7e-06]
[1724831813746,9.60048638,2444.0,2443.8,3.7e-06]
[1724831814261,4.09182,2443.9,2443.8,3.7e-06]
[1724831814458,9.60048638,2444.0,2443.8,3.7e-06]
[1724831815132,13.86492,2444.2,2443.8,3.7e-06]
[1724831815133,4.09142,2444.2,2443.8,3.7e-06]
[1724831815520,5.55882638,2444.3,2443.8,3.7e-06]
[1724831815720,23.10586638,2444.6,2443.8,3.7e-06]
[1724831815957,4.09082,2444.5,2443.9,0.4101]
[1724831816329,7.44,2445.0,2444.2,4.09115]
[1724831816330,5.55882638,2444.9,2444.2,4.09115]
[1724831816661,9.64902638,2444.9,2444.3,0.409115]
[1724831817156,4.0904,2444.8,2444.3,0.409115]
[1724831817356,4.09065,2444.6,2444.1,0.4101]
[1724831817665,8.18077,2444.8,2444.1,0.4101]
[1724831817835,4.09066,2444.6,2444.1,0.4101]
[1724831818022,8.18145,2444.6,2444.1,0.4101]
[1724831818222,5.55882638,2444.6,2443.7,9.9333]
[1724831818559,4.09134,2444.2,2443.8,1.443564]
[1724831818763,4.09134,2444.2,2443.7,9.9333]
[1724831819058,4.09165,2444.0,2443.3,9.9333]
[1724831819218,4.09165,2444.0,2443.5,0.4101]
[1724831819416,4.09201,2443.8,2443.4,0.4101]
[1724831820151,9.65047638,2444.0,2443.4,0.4101]
[1724831820359,4.09184,2443.9,2443.4,0.4101]
[1724831820751,9.65047638,2444.0,2443.4,0.4101]
[1724831820944,13.74222638,2444.0,2443.4,0.4101]
[1724831821231,4.09188,2443.9,2443.4,0.4101]
[1724831821424,11.06731586,2444.0,2443.4,0.4101]
[1724831821668,9.65047638,2444.0,2443.4,0.4101]
[1724831821965,4.09138,2444.2,2443.4,4.5027]
[1724831822130,4.09138,2444.2,2443.4,4.58455022]
[1724831822568,8.18282,2444.2,2443.4,6.44857924]
[1724831822756,4.09138,2444.2,2443.4,2.27416902]
[1724831822952,4.09166,2444.0,2443.4,0.4101]
[1724831823565,4.09133,2444.2,2443.4,0.4101]
[1724831823865,4.09151,2444.1,2443.4,2.266005]
[1724831824069,4.09133,2444.2,2443.4,6.358645]
[1724831824233,8.18274,2444.2,2443.4,6.358645]
[1724831824426,4.09133,2444.2,2443.4,6.358645]
[1724831824736,1.94730564,2444.2,2443.5,4.50257]
[1724831824942,5.55882638,2444.3,2443.5,4.50257]
[1724831825330,4.09135,2444.2,2443.5,0.4101]
[1724831825676,4.09135,2444.2,2443.2,0.03]
[1724831825677,4.09218,2443.7,2443.2,0.03]
[1724831826368,8.18444,2443.7,2443.2,0.03]
[1724831826533,4.09218,2443.7,2443.2,0.03]
[1724831827590,4.500715,2444.1,2443.2,0.52195573]
[1724831827757,4.09165,2444.0,2443.3,4.0927]
[1724831828074,4.09224,2443.7,2443.2,0.4401]
[1724831828437,4.09258,2443.5,2443.2,0.03]
[1724831828680,8.18523,2443.5,2443.2,0.03]
[1724831829172,4.09267,2443.4,2443.2,0.03]
[1724831829379,4.09258,2443.5,2443.2,0.03]
[1724831829675,4.09265,2443.4,2443.2,0.03]
[1724831829880,4.09267,2443.4,2443.2,0.03]
[1724831830088,5.37234584,2443.5,2443.2,0.03]
[1724831830242,4.09282,2443.3,2443.2,0.03]
[1724831830447,8.18564,2443.3,2443.2,0.03]
[1724831830819,9.13218058,2443.3,2443.2,0.03]
[1724831831166,5.03936058,2443.3,2443.2,0.03]
[1724831831478,4.09282,2443.3,2443.2,0.03]
[1724831832402,5.37235584,2443.5,2443.2,0.03]
[1724831832889,4.09275,2443.4,2443.2,0.03]
[1724831833489,1.27976584,2443.5,2443.2,0.03]
[1724831833699,4.09226,2443.7,2443.2,0.03]
[1724831833989,4.09188,2443.9,2443.2,0.03]
[1724831834288,10.14739064,2443.9,2443.2,4.533]
[1724831834493,7.44,2444.3,2443.2,0.4401]
[1724831834494,17.09007638,2444.3,2443.2,0.4401]
[1724831834699,4.09157,2444.1,2443.4,13.20601]
[1724831834990,9.65007638,2444.3,2443.4,13.20601]
[1724831834991,4.09123,2444.3,2443.6,4.09223]
[1724831835192,4.09123,2444.3,2443.6,4.09231]
[1724831835393,4.09123,2444.3,2443.6,4.09223]
[1724831835891,4.09123,2444.3,2443.6,8.18445]
[1724831836188,4.09123,2444.3,2443.6,10.08813368]
[1724831836565,4.09123,2444.3,2443.7,4.09213]
[1724831836887,4.09123,2444.3,2443.6,10.08811368]
[1724831837103,9.6154,2444.4,2443.7,4.09213]
[1724831837259,9.7846,2444.7,2443.9,4.09173]
[1724831837452,4.09076,2444.6,2443.9,4.09173]
[1724831837656,9.7846,2444.7,2443.9,4.09173]
[1724831838090,17.96581,2444.7,2444.0,4.09163]
[1724831838255,13.87519,2444.7,2444.0,4.09163]
[1724831838461,4.09069,2444.6,2444.0,4.09163]
[1724831839194,13.87519,2444.7,2444.0,5.850666]
[1724831839195,4.09059,2444.7,2444.0,5.850666]
[1724831839504,4.09073,2444.6,2444.0,1.759136]
[1724831839702,4.09073,2444.6,2443.8,17.59169]
[1724831839859,4.09087,2444.5,2443.8,13.49979]
[1724831840212,9.91056,2444.5,2443.6,4.09222]
[1724831840503,4.0912,2444.3,2443.6,4.09222]
[1724831841358,14.00145,2444.5,2443.8,4.09183]
[1724831841558,13.18329,2444.5,2443.8,4.09183]
[1724831841760,4.09089,2444.5,2443.8,8.1837]
[1724831842077,4.09013,2445.0,2444.3,4.09112]
[1724831842280,4.09013,2445.0,2444.4,0.409112]
[1724831842463,4.09012,2445.0,2444.3,4.09112]
[1724831842807,8.18021,2445.0,2444.3,4.09112]
[1724831842974,4.09009,2445.0,2444.3,4.09105]
[1724831843167,21.02765,2445.2,2444.4,0.409105]
[1724831843498,4.0899,2445.1,2444.4,4.499945]
[1724831843711,4.0899,2445.1,2444.5,4.0908]
[1724831844397,4.08975,2445.2,2444.5,14.0526955]
[1724831844577,15.42342638,2445.5,2444.7,4.09031]
[1724831844578,4.08943,2445.4,2444.7,4.09031]
[1724831844774,4.08943,2445.4,2444.7,8.1807]
[1724831844968,4.08943,2445.4,2444.7,9.99495955]
[1724831845509,4.08943,2445.4,2444.7,9.99493955]
[1724831845705,4.08964,2445.2,2444.5,18.1433155]
[1724831846006,4.08964,2445.2,2444.5,9.1028]
[1724831846180,4.0899,2445.1,2444.5,9.1028]
[1724831846714,4.08981,2445.1,2444.5,13.1936]
[1724831846874,4.08964,2445.2,2444.5,13.1936]
[1724831847072,4.08964,2445.2,2444.5,14.51296]
[1724831847377,4.08964,2445.2,2444.5,14.51288]
[1724831848513,4.08995,2445.1,2444.5,9.1028]
[1724831850577,4.08995,2445.1,2444.5,13.1936]
[1724831850823,4.08973,2445.2,2444.5,13.1936]
[1724831851023,4.08941,2445.4,2444.6,4.09054]
[1724831851316,4.08956,2445.3,2444.6,4.79236802]
[1724831851497,4.08956,2445.3,2444.6,8.88290802]
[1724831851700,4.08968,2445.2,2444.6,4.79236802]
[1724831851874,8.17883,2445.4,2444.6,4.09054]
[1724831852077,4.08951,2445.3,2444.7,4.09044]
[1724831852433,4.08938,2445.4,2444.7,4.09039]
[1724831852581,15.70227045,2445.6,2444.9,4.09012]
[1724831852915,4.08924,2445.5,2444.9,4.09012]
[1724831853616,5.65929705,2445.6,2445.0,4.08995]
[1724831853821,9.74837705,2445.6,2444.9,13.44182]
[1724831853975,4.08918,2445.5,2444.9,13.44176]
[1724831854906,5.65928705,2445.6,2444.9,17.53182]
[1724831855215,1.57022705,2445.6,2444.9,15.194932]
[1724831855518,17.41094045,2445.8,2444.9,19.284922]
[1724831855519,13.23774,2445.8,2444.9,19.284922]
[1724831855721,4.08897,2445.6,2444.9,15.194872]
[1724831856021,4.08897,2445.6,2445.0,4.08982]
[1724831856879,17.32647,2445.8,2445.1,4.08979]
[1724831857184,13.23773,2445.8,2445.1,4.08979]
[1724831857608,4.08889,2445.7,2445.1,4.08979]
[1724831857975,4.08899,2445.6,2445.0,4.08997]
[1724831858722,17.3265,2445.8,2445.1,4.08974]
[1724831858923,13.23773,2445.8,2445.2,4.08961]
[1724831859083,13.23773,2445.8,2445.2,8.17922]
[1724831859421,4.08839,2446.0,2445.4,4.08922]
[1724831859914,4.08839,2446.0,2445.4,4.0892]
[1724831860079,9.5979,2446.1,2445.4,4.0892]
[1724831860287,4.08809,2446.2,2445.6,4.08896]
[1724831860683,9.0681,2446.7,2446.0,4.0883]
[1724831860938,4.0876,2446.5,2445.9,4.08839]
[1724831861556,4.08741,2446.6,2445.9,8.17677]
[1724831861717,4.08741,2446.6,2445.9,17.41957]
[1724831861919,4.08741,2446.6,2446.0,4.08827]
[1724831862226,8.17481,2446.6,2445.9,13.33118]
[1724831862553,10.31638905,2446.6,2445.9,13.33118]
[1724831862760,4.08748,2446.5,2445.9,13.33118]
[1724831863060,6.22897905,2446.6,2445.9,17.41956]
[1724831863237,8.17483,2446.6,2445.9,15.073136]
[1724831863441,4.0874,2446.6,2446.0,4.08819]
[1724831863643,0.42792214,2446.5,2446.0,4.08819]
[1724831863842,0.42792214,2446.5,2446.0,5.78370122]
[1724831865963,0.42792214,2446.5,2446.1,4.08811]
[1724831866123,0.42792214,2446.5,2446.1,4.08805]
[1724831866463,0.42792214,2446.5,2445.6,4.08895]
[1724831866464,4.17320045,2446.3,2445.6,0.4101]
[1724831866626,5.50026005,2446.2,2445.5,9.5153]
[1724831866825,5.50026005,2446.2,2445.5,13.60442]
[1724831867163,4.08822,2446.1,2445.5,9.5153]
[1724831867456,8.26110045,2446.3,2445.7,4.08877]
[1724831867457,4.0879,2446.3,2445.7,4.08877]
[1724831867662,4.08799,2446.2,2445.6,4.08895]
[1724831867861,4.08799,2446.2,2445.6,5.49442129]
[1724831868592,4.08799,2446.2,2445.6,1.40547129]
[1724831869089,4.08799,2446.2,2445.6,5.49442129]
[1724831869259,8.1764,2446.1,2445.5,9.5153]
[1724831869472,4.17320045,2446.3,2445.4,0.45038291]
[1724831869647,4.08839,2446.0,2445.4,3.45038291]
[1724831870052,9.9497,2446.4,2445.5,9.7673]
[1724831870266,4.08814,2446.1,2445.6,1.32176829]
[1724831870558,8.17637,2446.1,2445.5,13.44623]
[1724831870754,4.08814,2446.1,2445.5,13.44623]
[1724831871258,4.08814,2446.1,2445.5,17.53527]
[1724831871765,4.08814,2446.1,2445.5,13.44623]
[1724831871963,8.17586,2446.3,2445.6,1.68966129]
[1724831872180,4.08799,2446.2,2445.6,1.68966129]
[1724831872700,4.08799,2446.2,2445.6,5.77860129]
[1724831873186,8.17579,2446.3,2445.6,5.77860129]
[1724831873400,4.08789,2446.3,2445.6,5.77860129]
[1724831873556,4.08798,2446.2,2445.6,5.77860129]
[1724831874053,8.17585,2446.3,2445.6,5.77860129]
[1724831874248,4.08789,2446.3,2445.6,5.77860129]
[1724831874454,4.08806,2446.2,2445.6,5.77860129]
[1724831874960,4.08806,2446.2,2445.6,1.68966129]
[1724831875191,4.08816,2446.1,2445.6,1.68966129]
[1724831875381,4.08816,2446.1,2445.5,4.08903]
[1724831876127,4.08816,2446.1,2445.5,8.17806]
[1724831876323,8.1764,2446.1,2445.6,1.16284429]
[1724831876616,4.08872,2445.8,2445.4,3.45038291]
[1724831876834,4.08872,2445.8,2445.3,3.0]
[1724831877382,4.08872,2445.8,2445.2,9.6699]
[1724831877383,4.08898,2445.6,2445.2,9.6699]
[1724831877579,4.08898,2445.6,2445.0,4.08987]
[1724831877778,4.08898,2445.6,2445.1,4.08978]
[1724831878090,4.08898,2445.6,2445.1,8.17956]
[1724831878301,4.08874,2445.8,2445.1,8.17956]
[1724831878302,8.17753,2445.8,2445.1,8.17956]
[1724831878513,4.08884,2445.7,2445.1,6.72472693]
[1724831878885,4.51683446,2445.7,2445.1,6.72472693]
[1724831879181,4.08903,2445.6,2445.1,6.72472693]
[1724831879618,8.17813,2445.6,2445.1,2.63500693]
[1724831879825,4.08925,2445.5,2445.0,1.14461085]
[1724831880611,4.08903,2445.6,2445.0,1.14461085]
[1724831880793,4.08903,2445.6,2445.0,5.23448085]
[1724831881130,4.08903,2445.6,2445.1,2.63504093]
[1724831882217,4.08903,2445.6,2445.1,6.72481093]
[1724831883908,0.42799446,2445.7,2445.1,10.81451093]
[1724831884096,0.42799446,2445.7,2445.1,6.72474093]
[1724831884292,4.51689446,2445.7,2445.1,6.72474093]
[1724831885420,0.42799446,2445.7,2445.2,0.67247409]
[1724831885737,0.42799446,2445.7,2445.4,4.08922]
[1724831886094,0.42799446,2445.7,2445.3,4.08933]
[1724831887310,0.42799446,2445.7,2445.2,1.22247409]
[1724831887621,9.88779446,2445.7,2445.1,8.17938]
[1724831887819,13.97662446,2445.7,2445.1,8.17938]
[1724831888019,8.17821,2445.6,2445.0,4.08996]
[1724831888219,4.08906,2445.6,2445.0,4.72175158]
[1724831888419,4.08906,2445.6,2445.1,4.08979]
[1724831888622,9.88779446,2445.7,2445.1,4.08969]
[1724831888623,13.97660446,2445.7,2445.1,4.08969]
[1724831889047,13.97660446,2445.7,2445.1,8.17941]
[1724831889250,13.97660446,2445.7,2445.1,5.89679016]
[1724831889543,0.42799446,2445.7,2445.1,5.89679016]
[1724831889845,0.42799446,2445.7,2445.3,4.08945]
[1724831890031,0.42799446,2445.7,2445.2,4.08964]
[1724831890234,4.51681446,2445.7,2445.2,1.06182417]
[1724831890409,4.51681446,2445.7,2445.2,5.15145417]
[1724831890610,4.51681446,2445.7,2445.2,1.06182417]
[1724831890611,4.08898,2445.6,2445.2,1.06182417]
[1724831891206,4.08898,2445.6,2445.1,4.0897]
[1724831891406,4.08898,2445.6,2444.9,13.34982]
[1724831891407,4.17320045,2445.2,2444.3,13.81124]
[1724831891659,0.42799446,2445.7,2444.0,9.696]
[1724831891660,4.09044,2444.8,2444.0,9.696]
[1724831891814,4.09044,2444.8,2444.1,4.09137]
[1724831892012,8.1809,2444.8,2444.2,1.50171218]
[1724831892354,4.09115,2444.3,2443.7,4.09205]
[1724831892558,4.09148,2444.2,2443.5,4.09241]
[1724831892716,4.09115,2444.3,2443.6,6.24772085]
[1724831892717,8.26435045,2444.3,2443.6,6.24772085]
[1724831892911,9.8299,2444.4,2443.8,4.09184]
[1724831893152,4.09084,2444.5,2443.8,9.8898]
[1724831893559,4.09084,2444.5,2443.9,4.09178]
[1724831893865,9.3955,2444.1,2443.3,0.4101]
[1724831894039,9.3955,2444.1,2443.2,4.12295]
[1724831894040,4.17320045,2444.0,2443.2,0.03]
[1724831894352,4.0925,2443.5,2443.2,0.03]
[1724831894558,4.09282,2443.3,2443.2,0.03]
[1724831894783,4.09269,2443.4,2443.2,0.03]
[1724831895283,4.09282,2443.3,2443.2,0.03]
[1724831895934,9.004191,2443.3,2443.2,0.03]
[1724831896269,8.18564,2443.3,2443.2,0.03]
[1724831896840,20.45434,2443.3,2443.2,0.03]
[1724831897337,4.09282,2443.3,2443.2,0.03]
[1724831898077,4.09267,2443.4,2443.2,0.03]
[1724831898433,9.4031,2443.8,2443.2,0.03]
[1724831898672,9.4031,2443.8,2443.2,1.96546836]
[1724831898873,13.4952,2443.8,2443.2,1.96546836]
[1724831899743,4.0917,2444.0,2443.3,4.09271]
[1724831899943,13.27960045,2444.1,2443.2,1.96546836]
[1724831900146,4.09208,2443.8,2443.2,1.96546836]
[1724831900658,5.00236,2444.0,2443.3,4.09272]
[1724831900860,4.09172,2444.0,2443.3,4.09272]
[1724831901048,4.09172,2444.0,2443.4,0.60581884]
[1724831901249,4.09172,2444.0,2443.4,4.69846884]
[1724831901444,8.18349,2444.0,2443.4,4.69846884]
[1724831901747,4.09139,2444.2,2443.6,4.09227]
[1724831901950,4.09139,2444.2,2443.7,0.873461]
[1724831902160,4.09139,2444.2,2443.5,8.18472]
[1724831902371,4.09139,2444.2,2443.6,0.55]
[1724831902739,4.09166,2444.0,2443.6,0.55]
[1724831902933,4.17320045,2444.1,2443.2,4.12297]
[1724831903152,0.409166,2443.9,2443.2,0.03]
[1724831903439,0.409166,2443.9,2443.3,4.09277]
[1724831903440,4.09182,2443.9,2443.3,4.09277]
[1724831903834,4.09157,2444.1,2443.4,4.09264]
[1724831904036,4.09157,2444.1,2443.5,0.41744934]
[1724831904374,4.09182,2443.9,2443.5,0.41744934]
[1724831904547,8.18319,2444.1,2443.5,0.41744934]
[1724831904755,4.09157,2444.1,2443.5,0.41744934]
[1724831904963,4.09166,2444.0,2443.5,0.41744934]
[1724831905562,4.09157,2444.1,2443.5,0.41744934]
[1724831905777,4.09157,2444.1,2443.6,0.45100093]
[1724831906026,4.09157,2444.1,2443.6,4.54328093]
[1724831906165,4.09121,2444.3,2443.6,4.54322093]
[1724831906346,4.09121,2444.3,2443.7,4.09204]
[1724831906682,4.09121,2444.3,2443.7,1.79427609]
[1724831906845,4.09121,2444.3,2443.7,5.88638609]
[1724831907455,4.09131,2444.2,2443.7,1.79427609]
[1724831907650,4.09131,2444.2,2443.6,13.85072093]
[1724831907651,4.09121,2444.3,2443.6,13.85072093]
[1724831908069,8.18252,2444.3,2443.7,4.09205]
[1724831908265,14.23208578,2444.4,2443.4,4.09256]
[1724831908594,4.09159,2444.1,2443.5,0.55]
[1724831908763,4.09121,2444.3,2443.6,9.1744]
[1724831908967,4.09121,2444.3,2443.7,0.97244]
[1724831909167,4.09121,2444.3,2443.6,9.1744]
[1724831909376,4.09166,2444.0,2443.6,9.1744]
[1724831909580,4.09158,2444.1,2443.5,0.55]
[1724831909760,4.09158,2444.1,2443.5,4.09239]
[1724831909957,0.42788081,2444.0,2443.5,4.09239]
[1724831910400,0.42788081,2444.0,2443.5,5.08726856]
[1724831910586,0.42788081,2444.0,2443.6,4.0923]
[1724831910758,0.42788081,2444.0,2443.6,4.09222]
[1724831911055,0.42788081,2444.0,2443.8,8.18377]
[1724831911258,0.42788081,2444.0,2443.8,4.910257]
[1724831911505,0.42788081,2444.0,2443.6,4.09217]
[1724831911793,0.42788081,2444.0,2443.2,4.12286]
[1724831911794,9.90978081,2444.0,2443.2,4.12286]
[1724831912094,11.31807894,2444.0,2443.4,4.09262]
[1724831912261,4.09182,2443.9,2443.3,4.09265]
[1724831912464,9.90978081,2444.0,2443.5,4.09243]
[1724831912683,0.42788081,2444.0,2443.6,4.09222]
[1724831912894,0.42788081,2444.0,2443.5,13.77203]
[1724831913267,0.42788081,2444.0,2443.5,15.61383958]
[1724831914000,0.42788081,2444.0,2443.3,8.18544]
[1724831914001,4.09187,2443.9,2443.3,8.18544]
[1724831914154,4.09187,2443.9,2443.4,4.09265]
[1724831914354,4.51953081,2444.0,2443.5,4.09247]
[1724831914592,4.09183,2443.9,2443.3,4.09271]
[1724831914800,4.09183,2443.9,2443.3,5.98711775]
[1724831915006,4.09211,2443.8,2443.2,4.12297]
[1724831915161,4.09221,2443.7,2443.2,0.03]
[1724831915363,13.81310045,2443.8,2443.2,0.03]
[1724831915364,4.09263,2443.5,2443.2,0.03]
[1724831915561,4.501893,2443.5,2443.2,0.03]
[1724831915800,4.09225,2443.7,2443.2,0.03]
[1724831916594,9.6399,2443.8,2443.2,0.58]
[1724831916767,4.09225,2443.7,2443.2,0.03]
[1724831917174,8.18449,2443.7,2443.2,0.03]
[1724831917475,4.09224,2443.7,2443.2,0.03]
[1724831917713,4.09224,2443.7,2443.2,4.12297]
[1724831917856,9.6399,2443.8,2443.3,4.0928]
[1724831918058,9.6399,2443.8,2443.3,4.914401]
[1724831918271,13.73189,2443.8,2443.3,4.914401]
[1724831918485,4.09215,2443.7,2443.2,0.03]
[1724831918688,4.09215,2443.7,2443.2,4.67295]
[1724831918999,4.09254,2443.5,2443.2,0.03]
[1724831919230,4.09279,2443.4,2443.2,0.03]
[1724831920069,4.09254,2443.5,2443.2,0.03]
[1724831920481,13.81310045,2443.8,2443.2,4.12287]
[1724831920482,9.6399,2443.8,2443.2,4.12287]
[1724831920794,4.09193,2443.9,2443.3,4.09281]
[1724831921037,4.09193,2443.9,2443.3,4.09273]
[1724831921196,0.42788081,2444.0,2443.5,4.09248]
[1724831921405,0.42788081,2444.0,2443.4,1.4138965]
[1724831921701,4.51969081,2444.0,2443.3,4.09272]
[1724831921903,4.51969081,2444.0,2443.4,4.09253]
[1724831922107,4.09184,2443.9,2443.3,4.0927]
[1724831922262,4.51964081,2444.0,2443.4,5.5064535]
[1724831922470,4.51963081,2444.0,2443.5,4.09248]
[1724831922865,0.42788081,2444.0,2443.5,4.09248]
[1724831923286,0.42788081,2444.0,2443.7,4.09214]
[1724831923493,0.42788081,2444.0,2443.7,4.910602]
[1724831923862,0.42788081,2444.0,2443.7,0.818462]
[1724831924097,0.42788081,2444.0,2443.5,8.18496]
[1724831924098,0.42788081,2444.0,2443.5,4.09248]
[1724831924265,0.42788081,2444.0,2443.5,4.09239]
[1724831924701,0.42788081,2444.0,2443.6,4.09221]
[1724831924906,0.42788081,2444.0,2443.5,4.09239]
[1724831925107,4.0921,2443.8,2443.2,9.6136]
[1724831925411,4.09217,2443.7,2443.2,0.03]
[1724831925614,8.18443,2443.7,2443.2,4.12297]
[1724831925780,4.52000083,2443.7,2443.2,9.04971851]
[1724831925990,0.42783083,2443.7,2443.3,4.09272]
[1724831926984,4.51999083,2443.7,2443.2,4.95667851]
[1724831927976,4.09241,2443.6,2443.2,0.03]
[1724831928171,4.09238,2443.6,2443.2,0.03]
[1724831928410,0.42783083,2443.7,2443.2,0.03]
[1724831928589,4.09282,2443.3,2443.2,0.03]
[1724831928900,13.24677,2443.4,2443.2,0.03]
[1724831929172,8.18564,2443.3,2443.2,0.03]
[1724831931052,21.53594,2443.3,2443.2,0.03]
[1724831931224,25.48898045,2443.1,2443.0,5.1e-06]
[1724831931408,21.39582045,2443.1,2443.0,5.1e-06]
[1724831931577,17.22262,2443.1,2443.0,5.1e-06]
[1724831932303,21.31578,2443.1,2443.0,5.1e-06]
[1724831932473,21.39582045,2443.1,2443.0,5.1e-06]
[1724831932712,22.31122045,2443.1,2443.0,5.1e-06]
[1724831933281,26.40438045,2443.1,2443.0,5.1e-06]
[1724831933717,30.49754045,2443.1,2443.0,5.1e-06]
[1724831933914,29.40438045,2443.1,2443.0,5.1e-06]
[1724831934908,33.49754045,2443.1,2443.0,5.1e-06]
[1724831935073,29.32434,2443.1,2443.0,5.1e-06]
[1724831936630,33.4175,2443.1,2443.0,5.1e-06]
[1724831936825,4.09503,2442.0,2441.5,0.4101]
[1724831936983,4.09503,2442.0,2441.6,1.41257303]
[1724831937183,8.19012,2442.0,2441.6,1.41257303]
[1724831937614,4.09503,2442.0,2441.6,1.41257303]
[1724831938128,4.09503,2442.0,2441.6,0.03872403]
[1724831938507,4.09526,2441.9,2441.6,0.03872403]
[1724831938709,4.09536,2441.8,2441.6,0.03872403]
[1724831939207,8.19014,2442.0,2441.6,0.03872403]
[1724831939406,4.09503,2442.0,2441.6,0.03872403]
[1724831939849,4.09519,2441.9,2441.6,0.03872403]
[1724831940030,8.19013,2442.0,2441.6,0.03872403]
[1724831940333,4.09476,2442.2,2441.6,4.13437403]
[1724831940490,9.479,2442.3,2441.6,4.13437403]
[1724831940693,4.0951,2442.0,2441.6,0.03872403]
[1724831940932,4.09486,2442.1,2441.6,0.03872403]
[1724831940933,4.0955,2441.7,2441.6,0.03872403]
[1724831941144,12.2865,2441.7,2441.6,0.03872403]
[1724831941298,13.16491,2441.1,2441.0,1.0]
[1724831941501,4.09735,2440.6,2440.5,0.97138073]
[1724831941698,8.27055045,2440.6,2440.5,0.97138073]
[1724831942010,13.1949555,2440.6,2440.5,0.97138073]
[1724831942205,26.9761055,2440.6,2440.5,0.97138073]
[1724831942516,4.09704,2440.8,2440.5,0.97138073]
[1724831942899,8.1947,2440.6,2440.5,0.97138073]
[1724831943103,4.09701,2440.8,2440.5,0.97138073]
[1724831943346,9.6838,2440.9,2440.5,0.97138073]
[1724831943506,13.44120045,2441.2,2440.5,0.97138073]
[1724831943722,9.268,2441.2,2440.6,4.32193347]
[1724831943915,17.53709045,2441.5,2440.7,4.09718]
[1724831944255,9.268,2441.5,2440.6,0.30654792]
[1724831944460,10.15784393,2441.9,2441.3,4.09605]
[1724831946463,4.09384,2442.7,2441.9,4.09508]
[1724831946753,9.2639,2442.8,2441.4,9.4765]
[1724831946754,0.42799066,2442.4,2441.7,0.08190422]
[1724831946929,0.42799066,2442.4,2442.3,4.0945]
[1724831947136,4.09268,2443.4,2442.6,4.09387]
[1724831947383,13.39129,2443.6,2442.7,0.08187459]
[1724831947384,9.2989,2443.6,2442.7,0.08187459]
[1724831947523,10.638029,2443.6,2442.9,4.09347]
[1724831947726,4.09168,2444.0,2443.0,4.0933]
[1724831947727,0.42795601,2443.3,2443.0,4.0933]
[1724831948050,0.42795601,2443.3,2443.2,4.09299]
[1724831948250,0.42795601,2443.3,2443.0,4.09332]
[1724831949450,0.42795601,2443.3,2443.1,4.09314]
[1724831949832,0.42795601,2443.3,2442.8,0.4101]
[1724831950040,0.42795601,2443.3,2443.0,4.09317]
[1724831950235,0.42795601,2443.3,2443.1,4.09312]
[1724831950461,0.42795601,2443.3,2443.1,4.174976]
[1724831950770,0.42795601,2443.3,2443.2,4.09299]
[1724831951425,0.42795601,2443.3,2443.2,8.18598]
[1724831951628,9.5078,2444.0,2443.5,4.09242]
[1724831951865,4.09135,2444.2,2443.5,4.09242]
[1724831952063,0.42795134,2443.7,2443.3,4.09279]
[1724831952263,4.0915,2444.1,2443.3,4.09279]
[1724831952436,0.42793936,2443.7,2443.3,4.09279]
[1724831952767,4.909945,2444.0,2443.3,4.09279]
[1724831953061,0.42793485,2443.6,2443.3,4.09279]
[1724831953229,4.09166,2444.0,2443.3,4.09279]
[1724831953772,0.42792763,2443.5,2443.1,4.0931]
[1724831954060,0.42791612,2443.9,2443.1,4.0931]
[1724831954278,9.8188,2443.7,2442.7,4.09378]